[Event "Titled Tuesday Blitz January 31 Early 2023"]
[White "Manon-og, Ramon Jr."]
[Black "Pein, Jonathan"]
[WhiteFideId "5200776"]
[BlackFideId "417092"]
[WhiteElo "1999"]
[BlackElo "2265"]
[Result "1-0"]
[Round "07"]
[TimeControl "180+2"]
[Date "2023.01.31"]
[WhiteClock "0:00:09"]
[BlackClock "0:00:09"]

1. e4 {[%clk 0:02:57]}  e5 {[%clk 0:02:59]} 2. Nf3 {[%clk 0:02:56]}  d6 {[%clk 0:02:59]} 3. d4 {[%clk 0:02:55]}  exd4 {[%clk 0:03:00]} 4. Nxd4 {[%clk 0:02:55]}  Nf6 {[%clk 0:03:01]} 5. Nc3 {[%clk 0:02:55]}  g6 {[%clk 0:03:01]} 6. Bc4 {[%clk 0:02:55]}  Bg7 {[%clk 0:03:02]} 7. Bg5 {[%clk 0:02:54]}  h6 {[%clk 0:03:01]} 8. Bh4 {[%clk 0:02:53]}  O-O {[%clk 0:03:02]} 9. O-O {[%clk 0:02:52]}  Nc6 {[%clk 0:03:01]} 10. Nxc6 {[%clk 0:02:50]}  bxc6 {[%clk 0:03:02]} 11. Re1 {[%clk 0:02:48]}  Re8 {[%clk 0:03:02]} 12. Qf3 {[%clk 0:02:37]}  g5 {[%clk 0:03:01]} 13. Bg3 {[%clk 0:02:37]}  Bg4 {[%clk 0:02:57]} 14. Qd3 {[%clk 0:02:34]}  Be6 {[%clk 0:02:56]} 15. Rad1 {[%clk 0:02:30]}  Ng4 {[%clk 0:02:54]} 16. Bxe6 {[%clk 0:02:16]}  Rxe6 {[%clk 0:02:55]} 17. Qc4 {[%clk 0:02:16]}  h5 {[%clk 0:02:32]} 18. h3 {[%clk 0:02:05]}  Ne5 {[%clk 0:02:30]} 19. Bxe5 {[%clk 0:02:03]}  Bxe5 {[%clk 0:02:31]} 20. Qxc6 {[%clk 0:02:03]}  Rb8 {[%clk 0:02:31]} 21. b3 {[%clk 0:02:00]}  g4 {[%clk 0:02:10]} 22. hxg4 {[%clk 0:01:55]}  hxg4 {[%clk 0:01:54]} 23. Nd5 {[%clk 0:01:46]}  Qh4 {[%clk 0:01:46]} 24. Qxc7 {[%clk 0:01:35]}  Rbe8 {[%clk 0:01:29]} 25. Qc4 {[%clk 0:01:24]}  g3 {[%clk 0:01:17]} 26. fxg3 {[%clk 0:00:52]}  Bxg3 {[%clk 0:01:17]} 27. Qc3 {[%clk 0:00:27]}  Qh2+ {[%clk 0:01:06]} 28. Kf1 {[%clk 0:00:27]}  Qh1+ {[%clk 0:01:07]} 29. Ke2 {[%clk 0:00:28]}  Qxg2+ {[%clk 0:01:07]} 30. Kd3 {[%clk 0:00:25]}  Qf3+ {[%clk 0:00:47]} 31. Kd2 {[%clk 0:00:21]}  Bxe1+ {[%clk 0:00:33]} 32. Rxe1 {[%clk 0:00:22]}  Qxc3+ {[%clk 0:00:16]} 33. Kxc3 {[%clk 0:00:23]}  Rc8+ {[%clk 0:00:16]} 34. Kd3 {[%clk 0:00:21]}  Kf8 {[%clk 0:00:17]} 35. Rh1 {[%clk 0:00:19]}  Kg8 {[%clk 0:00:14]} 36. Rh5 {[%clk 0:00:16]}  Kg7 {[%clk 0:00:14]} 37. Nf4 {[%clk 0:00:11]}  Rh6 {[%clk 0:00:13]} 38. Rg5+ {[%clk 0:00:12]}  Kf6 {[%clk 0:00:10]} 39. Rd5 {[%clk 0:00:10]}  Rh4 {[%clk 0:00:08]} 40. Ne2 {[%clk 0:00:06]}  Ke7 {[%clk 0:00:08]} 41. Nd4 {[%clk 0:00:06]}  Rh3+ {[%clk 0:00:08]} 42. Kd2 {[%clk 0:00:06]}  Rg8 {[%clk 0:00:08]} 43. Nf5+ {[%clk 0:00:06]}  Ke8 {[%clk 0:00:06]} 44. Rxd6 {[%clk 0:00:06]}  Rg2+ {[%clk 0:00:06]} 45. Kc1 {[%clk 0:00:07]}  Rh1+ {[%clk 0:00:06]} 46. Kb2 {[%clk 0:00:07]}  Rhh2 {[%clk 0:00:07]} 47. Rc6 {[%clk 0:00:07]}  Re2 {[%clk 0:00:07]} 48. Rc8+ {[%clk 0:00:04]}  Kd7 {[%clk 0:00:08]} 49. Rc4 {[%clk 0:00:04]}  Ke6 {[%clk 0:00:07]} 50. Nd4+ {[%clk 0:00:04]}  Ke5 {[%clk 0:00:08]} 51. Nc6+ {[%clk 0:00:05]}  Kd6 {[%clk 0:00:08]} 52. Nxa7 {[%clk 0:00:05]}  Ke6 {[%clk 0:00:06]} 53. Nb5 {[%clk 0:00:06]}  Rhf2 {[%clk 0:00:06]} 54. a4 {[%clk 0:00:07]}  Rf4 {[%clk 0:00:07]} 55. Nd4+ {[%clk 0:00:07]}  Ke5 {[%clk 0:00:06]} 56. Nxe2 {[%clk 0:00:08]}  Rf2 {[%clk 0:00:07]} 57. Nc3 {[%clk 0:00:08]}  f5 {[%clk 0:00:08]} 58. exf5 {[%clk 0:00:08]}  Rxf5 {[%clk 0:00:08]} 59. a5 {[%clk 0:00:08]}  Rf6 {[%clk 0:00:08]} 60. Rc5+ {[%clk 0:00:08]}  Kd4 {[%clk 0:00:08]} 61. Rd5+ {[%clk 0:00:08]}  Ke3 {[%clk 0:00:09]} 62. Rb5 {[%clk 0:00:07]}  Ra6 {[%clk 0:00:09]} 63. Nd5+ {[%clk 0:00:07]}  Kd4 {[%clk 0:00:09]} 64. Nb4 {[%clk 0:00:08]}  Ra8 {[%clk 0:00:09]} 65. a6 {[%clk 0:00:09]}  Ke4 {[%clk 0:00:09]} 66. Rb6 {[%clk 0:00:09]}  Kd4 {[%clk 0:00:10]} 67. Rb7 {[%clk 0:00:09]}  Kc5 {[%clk 0:00:11]} 68. a7 {[%clk 0:00:10]}  Rd8 {[%clk 0:00:09]} 69. Rb8 {[%clk 0:00:09]} 1-0


[Site "https://www.chess.com"]

[Event "Titled Tuesday Blitz January 31 Early 2023"]
[White "Gottstein, Claudius-Thomas"]
[Black "Toczek, Grzegorz"]
[WhiteFideId "4653327"]
[BlackFideId "1106457"]
[WhiteElo "2113"]
[BlackElo "2260"]
[Result "1-0"]
[Round "07"]
[TimeControl "180+2"]
[Date "2023.01.31"]
[WhiteClock "0:00:24"]
[BlackClock "0:00:53"]

1. Nf3 {[%clk 0:03:00]}  Nf6 {[%clk 0:02:59]} 2. e3 {[%clk 0:02:57]}  g6 {[%clk 0:02:58]} 3. c4 {[%clk 0:02:55]}  Bg7 {[%clk 0:02:59]} 4. Nc3 {[%clk 0:02:55]}  O-O {[%clk 0:02:58]} 5. b3 {[%clk 0:02:55]}  d6 {[%clk 0:02:53]} 6. Bb2 {[%clk 0:02:55]}  e5 {[%clk 0:02:53]} 7. d3 {[%clk 0:02:49]}  Re8 {[%clk 0:02:49]} 8. e4 {[%clk 0:02:48]}  Bg4 {[%clk 0:02:46]} 9. Be2 {[%clk 0:02:48]}  Nc6 {[%clk 0:02:46]} 10. Nd5 {[%clk 0:02:46]}  Nd4 {[%clk 0:02:41]} 11. Nxd4 {[%clk 0:02:36]}  Bxe2 {[%clk 0:02:28]} 12. Nxe2 {[%clk 0:02:36]}  c6 {[%clk 0:02:28]} 13. Nxf6+ {[%clk 0:02:35]}  Bxf6 {[%clk 0:02:29]} 14. O-O {[%clk 0:02:33]}  Qd7 {[%clk 0:02:29]} 15. f4 {[%clk 0:02:30]}  Bg7 {[%clk 0:02:29]} 16. f5 {[%clk 0:02:24]}  d5 {[%clk 0:02:28]} 17. cxd5 {[%clk 0:02:22]}  cxd5 {[%clk 0:02:27]} 18. Ng3 {[%clk 0:02:13]}  Rad8 {[%clk 0:02:24]} 19. Qf3 {[%clk 0:02:06]}  Rc8 {[%clk 0:02:01]} 20. Rac1 {[%clk 0:02:04]}  Rxc1 {[%clk 0:01:59]} 21. Rxc1 {[%clk 0:02:03]}  dxe4 {[%clk 0:02:00]} 22. dxe4 {[%clk 0:02:01]}  Qd2 {[%clk 0:02:00]} 23. Qc3 {[%clk 0:01:57]}  Qf4 {[%clk 0:01:53]} 24. Rf1 {[%clk 0:01:56]}  Qg4 {[%clk 0:01:53]} 25. f6 {[%clk 0:01:47]}  Bh6 {[%clk 0:01:51]} 26. Qc5 {[%clk 0:01:25]}  a6 {[%clk 0:01:41]} 27. Qd6 {[%clk 0:01:09]}  Bf4 {[%clk 0:01:40]} 28. Qd1 {[%clk 0:00:58]}  Qe6 {[%clk 0:01:36]} 29. Qd5 {[%clk 0:00:57]}  Qg4 {[%clk 0:01:36]} 30. Rf3 {[%clk 0:00:55]}  h5 {[%clk 0:01:36]} 31. h3 {[%clk 0:00:54]}  Qh4 {[%clk 0:01:34]} 32. Qd7 {[%clk 0:00:48]}  Re6 {[%clk 0:01:28]} 33. Qd8+ {[%clk 0:00:43]}  Kh7 {[%clk 0:01:27]} 34. Kf2 {[%clk 0:00:31]}  Bxg3+ {[%clk 0:01:22]} 35. Rxg3 {[%clk 0:00:30]}  Rxf6+ {[%clk 0:01:19]} 36. Kg1 {[%clk 0:00:26]}  Rc6 {[%clk 0:00:53]} 37. Qxh4 {[%clk 0:00:24]} 1-0


[Site "https://www.chess.com"]

[Event "Titled Tuesday Blitz January 31 Early 2023"]
[White "Borrmann, Laurenz"]
[Black "Sai Han Thiha"]
[WhiteFideId "312187930"]
[BlackFideId "13012290"]
[WhiteElo "2304"]
[BlackElo "2070"]
[Result "1-0"]
[Round "07"]
[TimeControl "180+2"]
[Date "2023.01.31"]
[WhiteClock "0:00:41"]
[BlackClock "0:00:02"]

1. e4 {[%clk 0:02:38]}  c6 {[%clk 0:02:59]} 2. d4 {[%clk 0:02:37]}  d5 {[%clk 0:03:00]} 3. Nc3 {[%clk 0:02:38]}  dxe4 {[%clk 0:03:00]} 4. Nxe4 {[%clk 0:02:39]}  Nf6 {[%clk 0:03:01]} 5. Nxf6+ {[%clk 0:02:34]}  exf6 {[%clk 0:03:02]} 6. c3 {[%clk 0:02:35]}  Bd6 {[%clk 0:03:02]} 7. Bd3 {[%clk 0:02:36]}  O-O {[%clk 0:03:03]} 8. Qc2 {[%clk 0:02:35]}  Re8+ {[%clk 0:03:04]} 9. Ne2 {[%clk 0:02:35]}  h5 {[%clk 0:03:04]} 10. Be3 {[%clk 0:02:34]}  Nd7 {[%clk 0:03:03]} 11. O-O-O {[%clk 0:02:34]}  Nf8 {[%clk 0:03:03]} 12. c4 {[%clk 0:02:24]}  Be6 {[%clk 0:02:22]} 13. Nc3 {[%clk 0:02:23]}  Rc8 {[%clk 0:02:14]} 14. a3 {[%clk 0:02:23]}  a6 {[%clk 0:01:48]} 15. Kb1 {[%clk 0:02:22]}  b5 {[%clk 0:01:48]} 16. c5 {[%clk 0:02:22]}  Be7 {[%clk 0:01:39]} 17. Be4 {[%clk 0:02:04]}  Qa5 {[%clk 0:01:34]} 18. d5 {[%clk 0:01:59]}  cxd5 {[%clk 0:01:25]} 19. Nxd5 {[%clk 0:02:00]}  Bxd5 {[%clk 0:00:56]} 20. Bxd5 {[%clk 0:01:59]}  Ne6 {[%clk 0:00:57]} 21. Bxe6 {[%clk 0:01:32]}  fxe6 {[%clk 0:00:57]} 22. Rd7 {[%clk 0:01:32]}  b4 {[%clk 0:00:50]} 23. Qg6 {[%clk 0:01:03]}  Bf8 {[%clk 0:00:03]} 24. Qf7+ {[%clk 0:01:00]}  Kh8 {[%clk 0:00:03]} 25. Qxh5+ {[%clk 0:01:01]}  Kg8 {[%clk 0:00:03]} 26. Bh6 {[%clk 0:00:46]}  bxa3 {[%clk 0:00:02]} 27. Bxg7 {[%clk 0:00:43]}  Bxg7 {[%clk 0:00:02]} 28. Qg6 {[%clk 0:00:42]}  a2+ {[%clk 0:00:02]} 29. Ka1 {[%clk 0:00:41]} 1-0


[Site "https://www.chess.com"]

[Event "Titled Tuesday Blitz January 31 Early 2023"]
[White "Melikhov, Evgeny V."]
[Black "Lehtosaari, Mauri"]
[WhiteFideId "4122046"]
[BlackFideId "501999"]
[WhiteElo "2269"]
[BlackElo "2176"]
[Result "1-0"]
[Round "07"]
[TimeControl "180+2"]
[Date "2023.01.31"]
[WhiteClock "0:00:13"]
[BlackClock "0:00:04"]

1. d4 {[%clk 0:03:00]}  d5 {[%clk 0:02:59]} 2. c4 {[%clk 0:03:00]}  c6 {[%clk 0:03:00]} 3. Nc3 {[%clk 0:02:59]}  Nf6 {[%clk 0:02:59]} 4. e3 {[%clk 0:02:59]}  a6 {[%clk 0:02:57]} 5. c5 {[%clk 0:02:59]}  Bf5 {[%clk 0:02:54]} 6. f4 {[%clk 0:02:58]}  Ne4 {[%clk 0:02:51]} 7. Nf3 {[%clk 0:02:53]}  Nd7 {[%clk 0:02:48]} 8. Nxe4 {[%clk 0:02:44]}  Bxe4 {[%clk 0:02:48]} 9. Be2 {[%clk 0:02:41]}  e6 {[%clk 0:02:31]} 10. O-O {[%clk 0:02:40]}  Bxf3 {[%clk 0:02:25]} 11. Bxf3 {[%clk 0:02:38]}  f5 {[%clk 0:02:24]} 12. Bd2 {[%clk 0:02:35]}  Nf6 {[%clk 0:02:22]} 13. b4 {[%clk 0:02:31]}  Be7 {[%clk 0:02:19]} 14. Be1 {[%clk 0:02:27]}  O-O {[%clk 0:01:56]} 15. Bh4 {[%clk 0:02:26]}  Nd7 {[%clk 0:01:53]} 16. Bxe7 {[%clk 0:02:24]}  Qxe7 {[%clk 0:01:53]} 17. a4 {[%clk 0:02:19]}  g5 {[%clk 0:01:44]} 18. g3 {[%clk 0:02:07]}  g4 {[%clk 0:01:38]} 19. Be2 {[%clk 0:02:04]}  h5 {[%clk 0:01:38]} 20. h4 {[%clk 0:01:49]}  Nf6 {[%clk 0:01:05]} 21. Bd3 {[%clk 0:01:47]}  Qd7 {[%clk 0:01:01]} 22. Qb3 {[%clk 0:01:45]}  Kg7 {[%clk 0:00:50]} 23. Ra3 {[%clk 0:01:41]}  Ra7 {[%clk 0:00:38]} 24. Rfa1 {[%clk 0:01:38]}  Rfa8 {[%clk 0:00:38]} 25. Kf2 {[%clk 0:01:32]}  Ng8 {[%clk 0:00:28]} 26. b5 {[%clk 0:01:26]}  axb5 {[%clk 0:00:19]} 27. axb5 {[%clk 0:01:26]}  Rxa3 {[%clk 0:00:18]} 28. Rxa3 {[%clk 0:01:26]}  Rxa3 {[%clk 0:00:18]} 29. Qxa3 {[%clk 0:01:26]}  cxb5 {[%clk 0:00:10]} 30. Qa5 {[%clk 0:01:26]}  Nf6 {[%clk 0:00:07]} 31. Bxb5 {[%clk 0:01:19]}  Ne4+ {[%clk 0:00:07]} 32. Kg2 {[%clk 0:01:19]}  Qc8 {[%clk 0:00:07]} 33. Qa7 {[%clk 0:01:12]}  Kf6 {[%clk 0:00:06]} 34. Bd3 {[%clk 0:01:01]}  Nd2 {[%clk 0:00:06]} 35. Qa2 {[%clk 0:00:54]}  Nf3 {[%clk 0:00:06]} 36. Be2 {[%clk 0:00:48]}  Ne1+ {[%clk 0:00:04]} 37. Kf2 {[%clk 0:00:47]}  Nf3 {[%clk 0:00:05]} 38. Bxf3 {[%clk 0:00:47]}  gxf3 {[%clk 0:00:05]} 39. Qa5 {[%clk 0:00:43]}  Qc6 {[%clk 0:00:04]} 40. Qd8+ {[%clk 0:00:41]}  Kf7 {[%clk 0:00:04]} 41. Qh8 {[%clk 0:00:39]}  Qa6 {[%clk 0:00:04]} 42. Qxh5+ {[%clk 0:00:37]}  Kf6 {[%clk 0:00:05]} 43. Qxf3 {[%clk 0:00:37]}  Kf7 {[%clk 0:00:06]} 44. g4 {[%clk 0:00:34]}  fxg4 {[%clk 0:00:04]} 45. Qxg4 {[%clk 0:00:34]}  Qd3 {[%clk 0:00:04]} 46. Qe2 {[%clk 0:00:31]}  Qe4 {[%clk 0:00:03]} 47. Kg3 {[%clk 0:00:28]}  Qg6+ {[%clk 0:00:03]} 48. Kh2 {[%clk 0:00:26]}  Qf5 {[%clk 0:00:03]} 49. Qg2 {[%clk 0:00:23]}  Qd3 {[%clk 0:00:03]} 50. Qg3 {[%clk 0:00:22]}  Qe2+ {[%clk 0:00:03]} 51. Kh3 {[%clk 0:00:22]}  Qf1+ {[%clk 0:00:04]} 52. Kg4 {[%clk 0:00:20]}  Qe2+ {[%clk 0:00:04]} 53. Kg5 {[%clk 0:00:16]}  Qd3 {[%clk 0:00:05]} 54. Kh6 {[%clk 0:00:14]}  Qf5 {[%clk 0:00:03]} 55. Qg7+ {[%clk 0:00:13]}  Ke8 {[%clk 0:00:03]} 56. Qg6+ {[%clk 0:00:14]}  Ke7 {[%clk 0:00:03]} 57. Qxf5 {[%clk 0:00:13]}  exf5 {[%clk 0:00:04]} 58. Kg7 {[%clk 0:00:13]} 1-0


[Site "https://www.chess.com"]

[Event "Titled Tuesday Blitz January 31 Early 2023"]
[White "Golubev, Mikhail"]
[Black "Sliwicki, Damian"]
[WhiteFideId "14100983"]
[BlackFideId "1127128"]
[WhiteElo "2461"]
[BlackElo "2158"]
[Result "1-0"]
[Round "07"]
[TimeControl "180+2"]
[Date "2023.01.31"]
[WhiteClock "0:00:45"]
[BlackClock "0:00:02"]

1. e4 {[%clk 0:02:56]}  c5 {[%clk 0:00:47]} 2. Nf3 {[%clk 0:02:52]}  g6 {[%clk 0:00:46]} 3. d4 {[%clk 0:02:52]}  cxd4 {[%clk 0:00:42]} 4. Nxd4 {[%clk 0:02:53]}  Nc6 {[%clk 0:00:39]} 5. Nc3 {[%clk 0:02:53]}  Bg7 {[%clk 0:00:37]} 6. Be3 {[%clk 0:02:53]}  Nf6 {[%clk 0:00:37]} 7. Nxc6 {[%clk 0:02:53]}  bxc6 {[%clk 0:00:37]} 8. e5 {[%clk 0:02:53]}  Ng8 {[%clk 0:00:36]} 9. Bd4 {[%clk 0:02:52]}  Qc7 {[%clk 0:00:36]} 10. f4 {[%clk 0:02:36]}  Nh6 {[%clk 0:00:30]} 11. e6 {[%clk 0:02:16]}  Bxd4 {[%clk 0:00:20]} 12. Qxd4 {[%clk 0:02:11]}  O-O {[%clk 0:00:20]} 13. exd7 {[%clk 0:02:05]}  Bxd7 {[%clk 0:00:16]} 14. O-O-O {[%clk 0:02:01]}  Rad8 {[%clk 0:00:16]} 15. Re1 {[%clk 0:01:30]}  Bg4 {[%clk 0:00:13]} 16. Qe5 {[%clk 0:01:25]}  Qb6 {[%clk 0:00:05]} 17. h3 {[%clk 0:01:13]}  Be6 {[%clk 0:00:03]} 18. Bd3 {[%clk 0:00:58]}  Rb8 {[%clk 0:00:02]} 19. Na4 {[%clk 0:00:45]}  Qb4 {[%clk 0:00:02]} 20. Re4 {[%clk 0:00:45]} 1-0


[Site "https://www.chess.com"]

[Event "Titled Tuesday Blitz January 31 Early 2023"]
[White "Prieto Aranguren, Alain"]
[Black "Kleiman, Jake"]
[WhiteFideId "2268906"]
[BlackFideId "2020041"]
[WhiteElo "2258"]
[BlackElo "2399"]
[Result "0-1"]
[Round "07"]
[TimeControl "180+2"]
[Date "2023.01.31"]
[WhiteClock "0:00:02"]
[BlackClock "0:00:06"]

1. d4 {[%clk 0:03:00]}  d5 {[%clk 0:02:53]} 2. c4 {[%clk 0:03:00]}  c6 {[%clk 0:02:54]} 3. Nf3 {[%clk 0:02:59]}  Nf6 {[%clk 0:02:52]} 4. cxd5 {[%clk 0:02:56]}  Nxd5 {[%clk 0:02:48]} 5. e4 {[%clk 0:02:54]}  Nf6 {[%clk 0:02:46]} 6. Nc3 {[%clk 0:02:53]}  Bg4 {[%clk 0:02:43]} 7. Bc4 {[%clk 0:02:50]}  e6 {[%clk 0:02:41]} 8. O-O {[%clk 0:02:49]}  Be7 {[%clk 0:02:40]} 9. Bf4 {[%clk 0:02:49]}  O-O {[%clk 0:02:40]} 10. Rc1 {[%clk 0:02:48]}  Nbd7 {[%clk 0:02:40]} 11. Qd2 {[%clk 0:02:46]}  Bb4 {[%clk 0:01:56]} 12. Ne5 {[%clk 0:02:43]}  Nxe4 {[%clk 0:01:41]} 13. Qe3 {[%clk 0:02:42]}  Nef6 {[%clk 0:01:13]} 14. Nxg4 {[%clk 0:02:36]}  Nxg4 {[%clk 0:01:13]} 15. Qg3 {[%clk 0:02:35]}  Ngf6 {[%clk 0:01:12]} 16. Be5 {[%clk 0:02:31]}  Nxe5 {[%clk 0:01:10]} 17. dxe5 {[%clk 0:02:31]}  Nd5 {[%clk 0:01:08]} 18. Ne4 {[%clk 0:02:29]}  Kh8 {[%clk 0:01:06]} 19. Rfd1 {[%clk 0:02:21]}  Be7 {[%clk 0:01:06]} 20. Rd3 {[%clk 0:02:19]}  Qb6 {[%clk 0:01:05]} 21. Bb3 {[%clk 0:02:10]}  a5 {[%clk 0:01:03]} 22. a4 {[%clk 0:01:56]}  Rad8 {[%clk 0:01:01]} 23. Qg4 {[%clk 0:01:53]}  Qb4 {[%clk 0:00:49]} 24. Rh3 {[%clk 0:01:51]}  f5 {[%clk 0:00:27]} 25. Qh5 {[%clk 0:01:44]}  h6 {[%clk 0:00:27]} 26. Qg6 {[%clk 0:01:33]}  Nf4 {[%clk 0:00:14]} 27. Rxh6+ {[%clk 0:01:29]}  gxh6 {[%clk 0:00:10]} 28. Qxh6+ {[%clk 0:01:29]}  Kg8 {[%clk 0:00:11]} 29. Ng5 {[%clk 0:00:30]}  Bxg5 {[%clk 0:00:10]} 30. Qxg5+ {[%clk 0:00:29]}  Kf7 {[%clk 0:00:11]} 31. Qxf5+ {[%clk 0:00:17]}  Ke8 {[%clk 0:00:10]} 32. Qc2 {[%clk 0:00:06]}  Rd2 {[%clk 0:00:08]} 33. Qh7 {[%clk 0:00:02]}  Qxb3 {[%clk 0:00:07]} 34. Qh6 {[%clk 0:00:01]}  Rd1+ {[%clk 0:00:06]} 35. Rxd1 {[%clk 0:00:02]}  Qxd1# {[%clk 0:00:06]} 0-1


[Site "https://www.chess.com"]

[Event "Titled Tuesday Blitz January 31 Early 2023"]
[White "Mushini Ajay"]
[Black "Manukian, Artak"]
[WhiteFideId "35066188"]
[BlackFideId "13301373"]
[WhiteElo "2310"]
[BlackElo "2196"]
[Result "1-0"]
[Round "07"]
[TimeControl "180+2"]
[Date "2023.01.31"]
[WhiteClock "0:00:51"]
[BlackClock "0:00:03"]

1. e4 {[%clk 0:03:00]}  c6 {[%clk 0:02:38]} 2. d4 {[%clk 0:03:00]}  d5 {[%clk 0:02:39]} 3. e5 {[%clk 0:02:58]}  Bf5 {[%clk 0:02:38]} 4. Nf3 {[%clk 0:02:58]}  e6 {[%clk 0:02:36]} 5. Be2 {[%clk 0:02:58]}  c5 {[%clk 0:02:35]} 6. O-O {[%clk 0:02:58]}  Nc6 {[%clk 0:02:35]} 7. Be3 {[%clk 0:02:58]}  Qb6 {[%clk 0:02:33]} 8. Nc3 {[%clk 0:02:57]}  Qxb2 {[%clk 0:02:32]} 9. Nb5 {[%clk 0:02:58]}  O-O-O {[%clk 0:02:28]} 10. dxc5 {[%clk 0:02:51]}  Qxc2 {[%clk 0:02:25]} 11. Qe1 {[%clk 0:02:47]}  Nh6 {[%clk 0:02:09]} 12. Nfd4 {[%clk 0:02:46]}  Nxd4 {[%clk 0:01:59]} 13. Bxd4 {[%clk 0:02:35]}  Qa4 {[%clk 0:01:47]} 14. Qc3 {[%clk 0:02:17]}  Kb8 {[%clk 0:01:42]} 15. Nxa7 {[%clk 0:02:16]}  Qxa7 {[%clk 0:01:35]} 16. c6 {[%clk 0:02:16]}  b6 {[%clk 0:01:30]} 17. Rab1 {[%clk 0:02:02]}  Bxb1 {[%clk 0:01:30]} 18. Rxb1 {[%clk 0:02:03]}  Kc7 {[%clk 0:01:29]} 19. Bxb6+ {[%clk 0:01:55]}  Qxb6 {[%clk 0:01:30]} 20. Rxb6 {[%clk 0:01:55]}  Kxb6 {[%clk 0:01:31]} 21. Qb3+ {[%clk 0:01:55]}  Kxc6 {[%clk 0:01:22]} 22. Qb5+ {[%clk 0:01:46]}  Kc7 {[%clk 0:01:22]} 23. Qa5+ {[%clk 0:01:47]}  Kc6 {[%clk 0:01:18]} 24. Bb5+ {[%clk 0:01:47]}  Kc5 {[%clk 0:01:14]} 25. Be2+ {[%clk 0:01:33]}  Kd4 {[%clk 0:01:14]} 26. Qxd8 {[%clk 0:01:33]}  Kxe5 {[%clk 0:01:11]} 27. a4 {[%clk 0:01:31]}  Rg8 {[%clk 0:01:03]} 28. a5 {[%clk 0:01:31]}  g5 {[%clk 0:00:58]} 29. a6 {[%clk 0:01:31]}  Bc5 {[%clk 0:00:54]} 30. Qc7+ {[%clk 0:01:26]}  Bd6 {[%clk 0:00:52]} 31. Qc3+ {[%clk 0:01:21]}  d4 {[%clk 0:00:52]} 32. Qa5+ {[%clk 0:01:19]}  Kf6 {[%clk 0:00:48]} 33. a7 {[%clk 0:01:19]}  Ra8 {[%clk 0:00:40]} 34. Bf3 {[%clk 0:01:18]}  Rc8 {[%clk 0:00:35]} 35. g4 {[%clk 0:01:15]}  Be5 {[%clk 0:00:31]} 36. a8=Q {[%clk 0:01:04]}  Rxa8 {[%clk 0:00:26]} 37. Qxa8 {[%clk 0:01:05]}  Kg7 {[%clk 0:00:26]} 38. Qe4 {[%clk 0:01:01]}  Bf6 {[%clk 0:00:22]} 39. Kg2 {[%clk 0:01:01]}  Ng8 {[%clk 0:00:18]} 40. Qd3 {[%clk 0:00:57]}  Ne7 {[%clk 0:00:17]} 41. Be4 {[%clk 0:00:58]}  h6 {[%clk 0:00:16]} 42. Qb5 {[%clk 0:00:57]}  Ng6 {[%clk 0:00:14]} 43. Bxg6 {[%clk 0:00:57]}  Kxg6 {[%clk 0:00:13]} 44. Kf3 {[%clk 0:00:56]}  h5 {[%clk 0:00:12]} 45. h3 {[%clk 0:00:55]}  hxg4+ {[%clk 0:00:11]} 46. hxg4 {[%clk 0:00:55]}  Kg7 {[%clk 0:00:10]} 47. Ke4 {[%clk 0:00:55]}  Kg6 {[%clk 0:00:10]} 48. Kd3 {[%clk 0:00:50]}  Kg7 {[%clk 0:00:09]} 49. Kc4 {[%clk 0:00:50]}  Kg6 {[%clk 0:00:09]} 50. Kc5 {[%clk 0:00:51]}  Kg7 {[%clk 0:00:09]} 51. Kc6 {[%clk 0:00:51]}  Kf8 {[%clk 0:00:07]} 52. Kd7 {[%clk 0:00:51]}  Kg7 {[%clk 0:00:04]} 53. Ke8 {[%clk 0:00:51]}  Kg6 {[%clk 0:00:03]} 54. Qd7 {[%clk 0:00:51]} 1-0


[Site "https://www.chess.com"]

[Event "Titled Tuesday Blitz January 31 Early 2023"]
[White "Zong, Davis"]
[Black "Matveeva, Olga"]
[WhiteFideId "30903955"]
[BlackFideId "24107018"]
[WhiteElo "2151"]
[BlackElo "2128"]
[Result "1-0"]
[Round "07"]
[TimeControl "180+2"]
[Date "2023.01.31"]
[WhiteClock "0:00:24"]
[BlackClock "0:00:19"]

1. e4 {[%clk 0:03:00]}  e6 {[%clk 0:03:00]} 2. Nf3 {[%clk 0:02:59]}  d5 {[%clk 0:03:00]} 3. exd5 {[%clk 0:03:00]}  exd5 {[%clk 0:03:00]} 4. d4 {[%clk 0:03:00]}  Nf6 {[%clk 0:02:59]} 5. Bd3 {[%clk 0:03:00]}  c5 {[%clk 0:02:59]} 6. O-O {[%clk 0:02:57]}  c4 {[%clk 0:03:00]} 7. Re1+ {[%clk 0:02:55]}  Be7 {[%clk 0:03:00]} 8. Bf1 {[%clk 0:02:49]}  O-O {[%clk 0:03:00]} 9. b3 {[%clk 0:02:48]}  cxb3 {[%clk 0:02:59]} 10. axb3 {[%clk 0:02:48]}  Bg4 {[%clk 0:02:58]} 11. h3 {[%clk 0:02:45]}  Bh5 {[%clk 0:02:52]} 12. g4 {[%clk 0:02:08]}  Bg6 {[%clk 0:02:50]} 13. Ne5 {[%clk 0:02:08]}  Nc6 {[%clk 0:02:48]} 14. Nxg6 {[%clk 0:02:05]}  fxg6 {[%clk 0:02:41]} 15. Bg2 {[%clk 0:01:57]}  Kh8 {[%clk 0:02:35]} 16. Nc3 {[%clk 0:01:53]}  Bd6 {[%clk 0:02:16]} 17. Bg5 {[%clk 0:01:44]}  h6 {[%clk 0:02:07]} 18. Be3 {[%clk 0:01:17]}  a6 {[%clk 0:01:53]} 19. g5 {[%clk 0:01:11]}  Ne4 {[%clk 0:01:24]} 20. Nxe4 {[%clk 0:01:02]}  dxe4 {[%clk 0:01:24]} 21. gxh6 {[%clk 0:00:45]}  Qh4 {[%clk 0:01:10]} 22. Qg4 {[%clk 0:00:29]}  Qxg4 {[%clk 0:00:46]} 23. hxg4 {[%clk 0:00:30]}  gxh6 {[%clk 0:00:44]} 24. Bxh6 {[%clk 0:00:30]}  Rfe8 {[%clk 0:00:40]} 25. Bg5 {[%clk 0:00:31]}  Kg7 {[%clk 0:00:38]} 26. c3 {[%clk 0:00:27]}  b5 {[%clk 0:00:28]} 27. Bxe4 {[%clk 0:00:26]}  Rac8 {[%clk 0:00:19]} 28. Rxa6 {[%clk 0:00:24]} 1-0


[Site "https://www.chess.com"]